bitfinex/quotes_ETHUSD_20250908
["timestamp","ask_amount","ask_price","bid_price","bid_amount"]
[1757370726289,3.6427,4314.6,4314.1,0.00200001]
[1757370726439,3.869,4314.5,4314.1,0.00200001]
[1757370726953,0.3089,4314.2,4314.1,0.00200001]
[1757370727570,1.8637,4314.2,4314.1,0.00200001]
[1757370727899,1.8637,4314.2,4314.1,2.31998058]
[1757370728672,1.1116,4314.2,4314.1,2.31998058]
[1757370728876,5.4238,4314.5,4314.2,2.31790454]
[1757370729076,1.5548,4314.4,4314.1,0.00200001]
[1757370729304,1.5548,4314.4,4314.3,0.1152]
[1757370729505,1.8637,4314.4,4314.3,0.1152]
[1757370729799,1.8637,4314.4,4314.3,2.43307311]
[1757370730181,1.8637,4314.4,4314.3,0.1152]
[1757370730502,1.8637,4314.4,4314.3,2.43307311]
[1757370732204,1.5548,4314.4,4314.3,2.43307311]
[1757370732403,1.779,4314.6,4314.5,2.31776567]
[1757370732604,5.648,4314.6,4314.5,2.31776567]
[1757370732777,5.648,4314.6,4314.5,2.43296567]
[1757370733261,5.648,4314.6,4314.5,0.1152]
[1757370733262,7.5117,4314.6,4314.5,0.1152]
[1757370734098,7.5117,4314.6,4314.5,2.43296567]
[1757370737922,7.2028,4314.6,4314.5,2.43296567]
[1757370739323,7.5117,4314.6,4314.5,2.43296567]
[1757370739796,7.5117,4314.6,4314.5,0.1152]
[1757370740122,7.5117,4314.6,4314.5,2.43296567]
[1757370740711,7.2028,4314.6,4314.5,2.43296567]
[1757370741810,7.5117,4314.6,4314.5,0.1152]
[1757370742180,7.5117,4314.6,4314.5,2.43296567]
[1757370744513,7.5117,4314.6,4314.5,0.1152]
[1757370745030,7.5117,4314.6,4314.5,2.43296567]
[1757370746430,7.5117,4314.6,4314.5,0.1152]
[1757370746799,7.5117,4314.6,4314.5,2.43296567]
[1757370747606,7.5117,4314.6,4314.5,0.1152]
[1757370750900,7.5117,4314.6,4314.5,2.43296567]
[1757370751642,7.5117,4314.6,4314.5,0.1152]
[1757370751831,7.2028,4314.6,4314.5,2.43296567]
[1757370752634,7.2038,4314.6,4314.5,2.43296567]
[1757370753948,2.8916,4314.6,4314.5,2.43296567]
[1757370754246,6.7536,4314.6,4314.5,2.43296567]
[1757370754952,0.001,4314.6,4314.5,2.43296567]
[1757370755108,0.001,4315.2,4314.7,2.31765823]
[1757370755309,0.001,4315.2,4315.1,3.98120071]
[1757370755646,0.001,4315.5,4315.4,3.10928229]
[1757370755857,0.001,4315.5,4315.4,9.98228229]
[1757370756206,0.001,4315.5,4315.4,11.64168038]
[1757370757352,0.001,4315.5,4315.4,9.98228229]
[1757370759363,0.001,4315.5,4315.4,10.07493591]
[1757370759525,0.001,4315.5,4315.4,9.28293591]
[1757370764026,0.001,4315.5,4315.4,39.28293591]
[1757370764682,0.001,4315.5,4315.4,40.07493591]
[1757370765158,0.001,4315.5,4315.4,40.19013591]
[1757370766906,1.7987,4315.5,4315.4,5.52513591]
[1757370767921,1.0452,4315.5,4315.4,5.52513591]
[1757370769873,1.4862,4315.5,4315.4,5.52513591]
[1757370770207,0.001,4315.5,4315.4,5.52513591]
[1757370776731,1.4862,4315.5,4315.4,5.52513591]
[1757370777518,1.0452,4315.5,4315.4,5.52513591]
[1757370778179,0.001,4315.5,4315.4,5.52513591]
[1757370778870,0.001,4316.0,4315.9,2.31701383]
[1757370778871,1e-08,4316.0,4315.9,2.31701383]
[1757370779070,1e-08,4316.0,4315.9,39.30121383]
[1757370779809,1e-08,4316.0,4315.9,39.99608372]
[1757370780213,1e-08,4316.0,4315.9,40.11310203]
[1757370781611,1e-08,4316.0,4315.9,10.11310203]
[1757370781775,1.47140001,4316.0,4315.9,10.11310203]
[1757370782985,1.78440001,4316.0,4315.9,6.24410203]
[1757370783191,1.78440001,4316.0,4315.9,9.99608372]
[1757370783408,1.78440001,4316.0,4315.9,5.43221383]
[1757370784313,1.78440001,4316.0,4315.9,6.12716099]
[1757370785942,1e-08,4316.0,4315.9,6.12716099]
[1757370788250,1.35190001,4316.0,4315.9,6.12716099]
[1757370788556,1.78440001,4316.0,4315.9,9.99516099]
[1757370789705,1.78440001,4316.0,4315.9,11.65682651]
[1757370789904,1.78440001,4316.0,4315.9,6.12716099]
[1757370790906,1.78440001,4316.0,4315.9,7.78891803]
[1757370798213,1.78440001,4316.0,4315.9,6.12716099]
[1757370800053,1.78440001,4316.0,4315.9,3.81014716]
[1757370800254,1.78440001,4316.0,4315.9,5.43221383]
[1757370810779,1.03890001,4316.0,4315.9,5.43221383]
[1757370811105,1.03890001,4316.0,4315.9,6.12720445]
[1757370811381,1.49340001,4316.0,4315.9,6.12720445]
[1757370812054,1.80540001,4316.0,4315.9,6.12720445]
[1757370815353,1.49340001,4316.0,4315.9,6.12720445]
[1757370816254,1.80540001,4316.0,4315.9,6.12720445]
[1757370816954,1.49340001,4316.0,4315.9,6.12720445]
[1757370817810,1.80540001,4316.0,4315.9,6.12720445]
[1757370819892,1.03890001,4316.0,4315.9,6.12720445]
[1757370820979,1e-08,4316.0,4315.9,9.98620445]
[1757370821178,0.001,4316.4,4316.0,6.10896014]
[1757370821501,0.001,4316.4,4316.0,8.45609393]
[1757370821880,0.026,4316.8,4316.6,2.31663809]
[1757370822068,0.026,4316.8,4316.6,9.17863809]
[1757370822261,0.026,4316.8,4316.6,10.95510114]
[1757370822663,0.026,4316.8,4316.6,11.0477393]
[1757370824197,0.026,4316.8,4316.6,9.38647625]
[1757370825489,1.8316,4316.7,4316.6,5.52447625]
[1757370827008,0.001,4316.7,4316.6,5.52447625]
[1757370828964,1.5196,4316.7,4316.6,5.52447625]
[1757370829603,1.0651,4316.7,4316.6,5.52447625]
[1757370829803,0.001,4316.7,4316.6,5.52447625]
[1757370831484,1.5196,4316.7,4316.6,5.52447625]
[1757370833328,1.8316,4316.7,4316.6,5.52447625]
[1757370835334,1.5196,4316.7,4316.6,5.52447625]
[1757370835504,1.0651,4316.7,4316.6,5.52447625]
[1757370836102,1.5196,4316.7,4316.6,5.52447625]
[1757370836306,1.8316,4316.7,4316.6,5.52447625]
[1757370843045,1.5196,4316.7,4316.6,5.52447625]
[1757370843632,1.8259,4316.7,4316.6,5.52447625]
[1757370843948,2.01329,4316.7,4316.6,0.1152]
[1757370845616,2.01329,4316.7,4316.5,0.002]
[1757370846603,0.02334554,4316.6,4316.5,0.002]
[1757370847444,2.01329,4316.7,4316.5,0.002]
[1757370847639,1.94736355,4316.6,4316.5,0.002]
[1757370851951,1.739,4316.6,4316.5,2.31869176]
[1757370852327,5.597,4316.6,4316.5,2.31869176]
[1757370853608,3.858,4316.6,4316.5,2.31869176]
[1757370853813,5.2907,4316.6,4316.5,2.43389176]
[1757370858722,4.8429,4316.6,4316.5,2.43389176]
[1757370860129,5.2907,4316.6,4316.5,2.43389176]
[1757370860661,4.8429,4316.6,4316.5,2.43389176]
[1757370861463,5.2907,4316.6,4316.5,2.43389176]
[1757370862336,5.597,4316.6,4316.5,2.43389176]
[1757370862937,5.597,4316.6,4316.5,0.1172]
[1757370863139,5.597,4316.6,4316.5,2.43389176]
[1757370864228,5.597,4316.6,4316.5,0.1172]
[1757370864471,6.1615,4316.6,4316.5,0.1172]
[1757370864686,6.1615,4316.6,4316.5,0.002]
[1757370868070,6.1615,4316.6,4316.5,2.31869176]
[1757370868236,6.1615,4316.6,4316.5,0.002]
[1757370869990,6.1615,4316.6,4316.5,0.6969858]
[1757370871509,6.1615,4316.6,4316.5,3.6969858]
[1757370872552,5.597,4316.6,4316.5,3.6969858]
[1757370872752,5.597,4316.6,4316.5,0.6969858]
[1757370874758,4.8429,4316.6,4316.5,6.01367756]
[1757370874996,5.3217,4316.6,4316.5,6.12887756]
[1757370875697,4.8942,4316.6,4316.5,6.12887756]
[1757370876875,5.3217,4316.6,4316.5,6.12887756]
[1757370877399,5.6347,4316.6,4316.5,6.12887756]
[1757370879723,0.001,4316.6,4316.5,6.12887756]
[1757370880572,0.001,4317.0,4316.9,2.3164771]
[1757370880814,0.001,4317.0,4316.9,39.46950146]
[1757370880981,0.001,4317.0,4316.9,39.58470146]
[1757370881874,0.001,4317.0,4316.9,40.37670146]
[1757370882111,0.001,4317.0,4316.9,40.46932589]
[1757370883205,0.001,4317.0,4316.9,40.17330153]
[1757370885250,0.001,4317.0,4316.9,41.83087423]
[1757370885729,0.001,4317.0,4316.9,40.46932589]
[1757370886138,0.001,4317.0,4316.9,42.12633489]
[1757370889222,0.001,4317.0,4316.9,40.46932589]
[1757370890953,0.001,4317.0,4316.9,10.46932589]
[1757370891119,0.001,4317.0,4316.9,40.46932589]
[1757370891837,0.001,4317.0,4316.9,40.17330153]
[1757370898864,1.7767,4317.0,4316.9,5.40910153]
[1757370899033,1.7767,4317.0,4316.9,9.26510153]
[1757370899229,0.001,4317.0,4316.9,39.26510153]
[1757370899467,0.001,4317.0,4316.9,39.56112589]
[1757370901140,0.001,4317.0,4316.9,40.05710153]
[1757370901679,0.001,4317.0,4316.9,10.05710153]
[1757370901875,0.001,4317.0,4316.9,40.05710153]
[1757370902081,0.001,4317.0,4316.9,40.35312589]
[1757370902377,0.001,4317.0,4316.9,42.01013489]
[1757370903187,0.001,4317.3,4317.2,3.10831613]
[1757370903352,0.001,4317.3,4317.2,39.96431613]
[1757370904447,1.002,4317.3,4317.2,40.16531613]
[1757370904789,1.4586,4317.3,4317.2,40.16531613]
[1757370905889,1.7443,4317.3,4317.2,40.16531613]
[1757370906096,1.7443,4317.3,4317.2,41.8218392]
[1757370907163,1.7443,4317.3,4317.2,40.16531613]
[1757370908499,1.4586,4317.3,4317.2,40.16531613]
[1757370908921,1.4586,4317.3,4317.2,40.28051613]
[1757370911355,1.7443,4317.3,4317.2,40.28051613]
[1757370912009,1.7443,4317.3,4317.2,39.48851613]
[1757370912364,1.7443,4317.3,4317.2,5.63251613]
[1757370914524,1.7443,4317.3,4316.9,1.66334765]
[1757370914525,1.93903,4317.3,4316.9,1.66334765]
[1757370914808,1.4576,4317.2,4317.1,0.1152]
[1757370915193,1.7433,4317.2,4316.9,0.1152]
[1757370915395,0.23968309,4317.1,4316.8,0.002]
[1757370915595,1.777,4317.0,4316.8,0.002]
[1757370915908,0.2857,4316.9,4316.8,0.002]
[1757370916282,1.7433,4316.9,4316.8,0.002]
[1757370916485,2.51408376,4316.9,4316.8,0.002]
[1757370917653,2.51408376,4316.9,4316.8,2.31853076]
[1757370918298,2.51408376,4316.9,4316.8,0.002]
[1757370919131,2.51408376,4316.9,4316.5,0.002]
[1757370919132,2.31663809,4316.6,4316.5,0.002]
[1757370919291,2.31675595,4316.4,4315.5,0.1152]
[1757370919488,2.3171212,4315.7,4314.7,0.002]
[1757370919704,7.0906,4315.6,4315.2,0.1152]
[1757370919909,0.2857,4315.3,4314.9,0.09268946]
[1757370920103,0.02334554,4315.2,4314.8,2.45780029]
[1757370920317,1.48094554,4315.2,4314.8,2.45780029]
[1757370920523,1.7433,4315.2,4314.8,5.45780029]
[1757370920685,1.7433,4315.2,4315.0,2.31748687]
[1757370921039,5.6003,4315.2,4315.0,2.31749144]
[1757370921231,5.6003,4315.2,4315.1,2.33944339]
[1757370924088,5.6003,4315.2,4315.1,0.022]
[1757370924888,5.6003,4315.2,4315.1,2.33944339]
[1757370925187,5.6003,4315.2,4315.1,0.022]
[1757370925925,5.6003,4315.2,4315.1,2.33944339]
[1757370926137,5.6003,4315.2,4315.1,0.022]
[1757370926489,5.6003,4315.2,4315.1,2.33944339]
[1757370934406,4.1427,4315.2,4315.1,2.33944339]
[1757370935649,3.857,4315.2,4315.1,2.33944339]
[1757370935952,4.1453,4315.2,4315.1,2.33944339]
[1757370936244,5.5026,4315.2,4315.1,2.33944339]
[1757370937455,6.05286,4315.2,4315.1,0.022]
[1757370942120,0.1152,4315.5,4315.2,2.3173373]
[1757370942325,3.858,4315.4,4315.1,0.022]
[1757370942560,0.2883,4315.3,4315.1,2.33942957]
[1757370942764,0.2883,4315.3,4315.2,2.31738969]
[1757370942934,3.858,4315.3,4315.1,0.022]
[1757370943464,3.858,4315.3,4315.2,2.31738969]
[1757370945025,4.1463,4315.3,4315.2,2.31738969]
[1757370945228,3.858,4315.3,4315.2,2.31738969]
[1757370945856,3.858,4315.3,4315.2,2.62968969]
[1757370946057,1.778,4315.6,4315.5,2.31722859]
[1757370946253,5.636,4315.6,4315.5,2.31722859]
[1757370947070,5.636,4315.6,4315.5,2.62952859]
[1757370947475,5.636,4315.6,4315.4,2.31727669]
[1757370947680,7.2816,4315.6,4315.4,2.31727669]
[1757370947990,7.2816,4315.6,4315.1,0.022]
[1757370948193,7.2816,4315.6,4315.1,2.33942653]
[1757370948194,6.8452,4315.6,4315.1,2.33942653]
[1757370948340,0.4364,4315.5,4315.4,2.31728229]
[1757370949042,0.7247,4315.5,4315.4,2.31728229]
[1757370949754,1.6456,4315.5,4315.1,0.022]
[1757370949957,5.02256,4315.4,4315.1,0.022]
[1757370950282,0.13854554,4315.3,4315.1,0.022]
[1757370950447,4.1463,4315.2,4315.1,0.022]
[1757370950653,4.5827,4315.2,4315.1,0.022]
[1757370950858,5.21973055,4315.2,4315.1,0.022]
[1757370951052,6.14063055,4315.2,4315.1,0.022]
[1757370961569,3.10960452,4314.8,4314.7,0.002]
[1757370961769,3.10965823,4314.7,4314.6,0.002]
[1757370961969,2.05756083,4314.7,4314.6,0.002]
[1757370962189,5.5568,4314.7,4314.6,0.002]
[1757370968405,5.5558,4314.7,4314.6,0.002]
[1757370969448,1.779,4314.8,4314.6,0.002]
[1757370969576,3.859,4314.7,4314.6,0.2927]
[1757370969784,3.859,4314.7,4314.6,0.002]
[1757370970094,4.1566,4314.7,4314.6,0.002]
[1757370970298,5.5568,4314.7,4314.6,0.002]
[1757370970796,1.6978,4314.7,4314.6,0.002]
[1757370971006,5.5568,4314.7,4314.6,0.002]
[1757370971205,6.29271455,4314.7,4314.6,0.002]
[1757370972686,3.792,4314.2,4313.1,0.02]
[1757370972949,6.86494647,4313.2,4313.1,0.02]
[1757370973082,15.94701071,4313.2,4313.1,0.02]
[1757370973280,4.2688,4313.2,4313.1,0.02]
[1757370973483,7.39514554,4313.2,4313.1,0.02]
[1757370973733,7.3718,4313.2,4313.1,0.02]
[1757370973917,8.34081578,4313.2,4313.1,0.02]
[1757370974123,6.64301578,4313.2,4313.1,0.02]
[1757370974742,6.94061578,4313.2,4313.1,0.02]
[1757370975299,8.34081578,4313.2,4313.1,0.02]
[1757370978209,7.3718,4313.2,4313.1,0.02]
[1757370978550,5.9716,4313.2,4313.1,0.02]
[1757370979109,5.9706,4313.2,4313.1,0.02]
[1757370979311,2.0766,4313.2,4313.1,0.02]
[1757370979512,5.99294554,4313.2,4313.1,0.02]
[1757370979813,5.9696,4313.2,4313.1,0.02]
[1757370980227,7.87628426,4313.2,4313.1,0.02]
[1757370980513,7.87628426,4313.2,4313.1,0.022]
[1757370981577,3.98328426,4313.2,4313.1,0.022]
[1757370981875,7.8996298,4313.2,4313.1,0.022]
[1757370982075,7.87628426,4313.2,4313.1,0.022]
[1757370982907,6.47608426,4313.2,4313.1,0.022]
[1757370984104,6.17648426,4313.2,4313.1,0.022]
[1757370984336,2.28548426,4313.2,4313.1,0.022]
[1757370984538,0.001,4313.7,4313.3,2.31840996]
[1757370984539,1.779,4313.6,4313.3,2.31840996]
[1757370984742,3.891,4313.5,4313.3,2.31840996]
[1757370984942,3.891,4313.5,4313.4,0.2907]
[1757370988156,3.891,4313.5,4313.1,0.022]
[1757370988330,3.91434554,4313.5,4313.1,0.022]
[1757370988729,3.891,4313.5,4313.1,2.34050616]
[1757370989256,3.891,4313.5,4313.1,0.022]
[1757370989465,3.91434554,4313.5,4313.2,2.31846424]
[1757370989755,3.891,4313.5,4313.1,0.022]
[1757370990548,3.891,4313.5,4313.1,2.34048733]
[1757370991336,3.891,4313.5,4313.2,2.31845611]
[1757370992075,4.8506,4313.5,4313.1,0.022]
[1757370992458,4.8506,4313.5,4313.1,2.34047836]
[1757370992774,4.8506,4313.5,4313.2,2.31846097]
[1757370993350,4.8506,4313.5,4313.3,2.31840107]
[1757370993882,4.8506,4313.5,4313.1,3.022]
[1757370993883,4.8506,4313.5,4313.2,2.31845647]
[1757370994736,4.8506,4313.5,4313.1,0.022]
[1757370995061,5.3088,4313.5,4313.1,0.022]
[1757370995430,5.3088,4313.5,4313.1,2.34051433]
[1757370996180,4.8506,4313.5,4313.1,0.022]
[1757370996382,0.2865,4313.2,4313.1,0.022]
[1757370996545,4.1715,4313.2,4313.1,0.022]
[1757370996744,5.61264554,4313.2,4313.1,0.022]
[1757370996941,5.5893,4313.2,4313.1,0.022]
[1757371002248,6.45660018,4313.2,4313.1,0.022]
[1757371002643,9.56706442,4313.2,4313.1,0.022]
[1757371004483,7.24860018,4313.2,4313.1,0.022]
[1757371004686,9.56706442,4313.2,4313.1,0.022]
[1757371005793,17.69174575,4313.2,4313.1,0.022]
[1757371006089,17.90830304,4313.2,4313.1,0.022]
[1757371007058,14.02330304,4313.2,4313.1,0.022]
[1757371007378,17.90830304,4313.2,4313.1,0.022]
[1757371008553,9.78262171,4313.2,4313.1,0.022]
[1757371009292,5.89862171,4313.2,4313.1,0.022]
[1757371009598,9.78262171,4313.2,4313.1,0.022]
[1757371012385,9.56606442,4313.2,4313.1,0.022]
[1757371012581,17.69074575,4313.2,4313.1,0.022]
[1757371012782,17.90696849,4313.2,4313.1,0.022]
[1757371013564,17.68974575,4313.2,4313.1,0.022]
[1757371021793,17.68974575,4313.2,4313.1,1e-08]
[1757371021986,17.90586886,4313.2,4313.1,1e-08]
[1757371024030,17.90586886,4313.2,4312.6,0.002]
[1757371024031,3.11073304,4312.7,4312.6,0.002]
[1757371024235,17.13588302,4312.7,4312.6,0.002]
[1757371024433,21.77493748,4312.7,4312.6,0.002]
[1757371024834,5.54994812,4312.3,4312.2,0.002]
[1757371025042,5.54994812,4312.3,4311.1,1e-08]
[1757371025043,18.45280444,4312.3,4311.1,1e-08]
[1757371025226,0.792,4310.5,4310.1,0.02]
[1757371025397,2.439,4310.6,4310.1,0.02]
[1757371025398,11.23675928,4310.2,4310.1,0.02]
[1757371025599,15.66160526,4310.2,4310.1,0.02]
[1757371025822,1.00794598,4310.2,4310.1,0.3342]
[1757371026007,3.92634554,4310.2,4310.1,1.3291]
[1757371026208,6.24642349,4310.2,4310.1,1.3291]
[1757371026407,3.903,4310.2,4310.1,0.7717]
[1757371026645,3.92634554,4310.2,4310.1,0.7717]
[1757371027311,2.32002513,4310.3,4310.1,0.7717]
[1757371027514,3.903,4310.2,4310.1,1.3291]
[1757371027709,3.903,4310.2,4310.1,0.8916]
[1757371028140,7.33427659,4310.2,4310.1,1e-08]
[1757371028453,4.92669389,4310.2,4309.8,0.025]
[1757371028670,3.11223944,4309.9,4309.8,0.025]
[1757371028853,7.07258498,4309.9,4309.8,0.025]
[1757371029185,7.04923944,4309.9,4309.8,0.3392]
[1757371030345,4.729,4309.9,4309.8,0.3392]
[1757371030938,7.04923944,4309.9,4309.8,0.3392]
[1757371031231,4.729,4309.9,4309.8,0.3392]
[1757371031432,3.94,4309.9,4309.8,0.3392]
[1757371031672,3.939,4309.9,4309.8,0.7767]
[1757371032438,0.02334554,4310.1,4309.8,0.7767]
[1757371032639,0.792,4310.3,4309.8,0.7767]
[1757371032640,3.939,4310.0,4309.9,0.4375]
[1757371032843,3.939,4310.0,4309.9,0.7517]
[1757371035135,3.939,4310.0,4309.9,0.3142]
[1757371036482,1.78,4310.0,4309.9,1.2746]
[1757371036789,5.719,4310.0,4309.9,1.2746]
[1757371036994,5.719,4310.0,4309.9,3.59483944]
[1757371037180,1.781,4310.5,4310.4,2.3199703]
[1757371037354,5.721,4310.5,4310.4,6.5945703]
[1757371038252,5.72,4310.5,4310.4,6.5945703]
[1757371038694,1.781,4310.5,4310.4,6.5945703]
[1757371038998,5.72,4310.5,4310.4,6.5945703]
[1757371040685,5.72,4310.5,4310.4,6.0716703]
[1757371041199,5.717,4310.5,4310.4,6.0716703]
[1757371042088,5.717,4310.5,4310.4,6.5945703]
[1757371042554,5.717,4310.5,4310.4,6.0716703]
[1757371043459,1.781,4310.5,4310.4,6.0716703]
[1757371043795,5.716,4310.5,4310.4,6.0716703]
[1757371046053,5.716,4310.5,4310.4,5.6341703]
[1757371049554,5.717,4310.5,4310.4,5.6341703]
[1757371050351,5.711,4310.5,4310.4,5.6341703]
[1757371051049,5.71,4310.5,4310.4,5.6341703]
[1757371058687,5.71,4310.5,4310.4,3.0]
[1757371058899,5.71,4310.5,4310.4,5.3199703]
[1757371060892,5.71,4310.5,4309.8,0.9874]
[1757371060893,7.359,4310.5,4309.8,0.027]
[1757371061105,6.88477043,4310.3,4309.8,0.027]
[1757371061283,0.116,4310.0,4309.8,0.027]
[1757371061442,4.23994554,4309.9,4309.8,0.027]
[1757371061644,5.59334554,4309.9,4309.8,0.027]
[1757371061947,5.57,4309.9,4309.8,0.027]
[1757371063715,6.37061294,4309.9,4309.8,0.027]
[1757371065185,7.16261294,4309.9,4309.8,0.027]
[1757371065545,3.24161294,4309.9,4309.8,0.027]
[1757371065774,9.50419792,4309.9,4309.8,0.027]
[1757371065974,6.36861294,4309.9,4309.8,0.027]
[1757371066174,8.68885238,4309.9,4309.8,0.027]
[1757371067618,8.68985238,4309.9,4309.8,0.027]
[1757371068477,6.36961294,4309.9,4309.8,0.027]
[1757371068894,8.68985238,4309.9,4309.8,0.027]
[1757371074524,5.90021294,4309.9,4309.8,0.027]
[1757371074728,6.36461294,4309.9,4309.8,0.027]
[1757371075280,3.915,4309.9,4309.8,0.3198]
[1757371076135,0.116,4310.0,4309.8,0.3198]
[1757371076287,3.914,4309.9,4309.8,0.3198]
[1757371076487,3.915,4309.9,4309.8,0.3198]
[1757371077330,0.116,4310.0,4309.8,0.3198]
[1757371077493,3.914,4309.9,4309.8,0.3198]
[1757371078891,3.913,4309.9,4309.8,0.3198]
[1757371079087,0.116,4310.2,4309.8,2.64009328]
[1757371079333,3.913,4310.1,4310.0,2.32018561]
[1757371079512,3.913,4310.1,4310.0,3.05048561]
[1757371079904,0.1152,4310.4,4310.2,2.32003524]
[1757371080105,3.913,4310.3,4310.2,2.32003524]
[1757371080328,3.913,4310.3,4310.2,2.61283524]
[1757371080532,3.913,4310.3,4310.2,2.61287795]
[1757371080741,3.913,4310.3,4310.2,5.61287795]
[1757371081388,3.913,4310.3,4310.2,3.2928]
[1757371081632,3.913,4310.3,4310.2,5.61287795]
[1757371082235,1.782,4310.5,4310.3,2.32002033]
[1757371082390,1.782,4310.5,4310.4,2.3199703]
[1757371082594,5.693,4310.5,4310.4,2.6151703]
[1757371084690,5.693,4310.5,4310.4,6.0499703]
[1757371084894,5.693,4310.5,4310.4,6.5413703]
[1757371085635,5.693,4310.5,4310.4,6.0499703]
[1757371086840,5.693,4310.5,4310.4,5.6151703]
[1757371087143,1.782,4310.5,4310.4,5.6151703]
[1757371087298,5.692,4310.5,4310.4,5.6151703]
[1757371095647,5.686,4310.5,4310.4,5.6151703]
[1757371096699,0.001,4310.5,4310.4,6.6253703]
[1757371096937,3.905,4310.5,4310.4,6.6253703]
[1757371098197,3.905,4310.5,4310.4,6.1651703]
[1757371102547,3.905,4310.5,4310.4,5.7303703]
[1757371102705,0.001,4310.5,4310.4,5.7303703]
[1757371104022,0.001,4310.5,4310.4,6.1651703]
[1757371105441,0.001,4310.5,4310.4,5.7303703]
[1757371109267,0.3108,4310.5,4310.4,5.4351703]
[1757371109422,1.6534,4310.5,4310.4,0.1152]
[1757371109620,2.21117455,4310.5,4310.4,2.4351703]
[1757371109815,2.23452009,4310.5,4310.4,2.4351703]
[1757371110948,2.23452009,4310.5,4310.4,0.1152]
[1757371111482,2.23452009,4310.5,4310.4,2.4351703]
[1757371113079,1.67674554,4310.5,4310.4,2.4351703]
[1757371113962,1.67674554,4310.5,4310.4,0.1152]
[1757371114165,1.6534,4310.5,4310.1,0.002]
[1757371114465,1.80334554,4310.4,4310.1,0.002]
[1757371114635,4.63077455,4310.3,4310.1,0.002]
[1757371114852,0.3129,4310.2,4310.1,0.002]
[1757371115362,1.5953,4310.2,4310.1,0.002]
[1757371117153,1.5953,4310.2,4310.1,2.32213178]
[1757371118673,5.4893,4310.2,4310.1,2.32213178]
[1757371120561,5.0541,4310.2,4310.1,2.32213178]
[1757371120743,3.894,4310.2,4310.1,2.62573178]
[1757371120943,3.894,4310.2,4310.1,2.32213178]
[1757371121368,1.78,4310.4,4310.3,2.32002412]
[1757371121583,5.673,4310.4,4310.3,5.62362412]
[1757371122506,6.8331,4310.4,4310.3,5.32002412]
[1757371122680,7.2683,4310.4,4310.3,5.32002412]
[1757371122886,5.673,4310.4,4310.3,5.32002412]
[1757371123607,6.5202,4310.4,4310.3,5.32002412]
[1757371123910,6.8331,4310.4,4310.3,5.32002412]
[1757371124205,5.673,4310.4,4310.3,5.32002412]
[1757371124896,5.673,4310.4,4310.3,5.62362412]
[1757371125511,1.78,4310.4,4310.3,5.62362412]
[1757371125711,5.672,4310.4,4310.3,5.62362412]
[1757371130173,5.672,4310.4,4310.3,5.32002412]
[1757371130572,5.672,4310.4,4310.3,5.62362412]
[1757371133323,1.78,4310.4,4310.3,5.62362412]
[1757371133619,0.001,4310.5,4310.4,5.3199703]
[1757371133919,3.889,4310.9,4310.8,2.31975503]
[1757371134221,3.889,4310.9,4310.8,6.17605503]
[1757371134424,0.001,4311.0,4310.9,5.31970122]
[1757371134584,0.001,4311.0,4310.9,6.18430122]
[1757371134793,0.001,4311.0,4310.9,6.48790122]
[1757371134999,0.001,4311.0,4310.9,7.18360582]
[1757371136249,0.001,4311.0,4310.9,6.75650582]
[1757371136738,0.001,4311.0,4310.9,6.31900582]
[1757371136939,0.001,4311.0,4310.9,6.75650582]
[1757371140464,0.001,4311.0,4310.9,6.31900582]
[1757371140636,0.001,4311.0,4310.9,6.75650582]
[1757371141932,0.001,4311.0,4310.9,6.31900582]
[1757371144477,0.001,4311.0,4310.9,6.74940582]
[1757371148054,0.001,4311.5,4311.3,2.319486]
[1757371148280,0.8519,4312.4,4311.7,2.31927082]
[1757371148435,0.8519,4312.4,4311.8,39.49081703]
[1757371148774,0.8519,4312.4,4311.8,39.60601703]
[1757371150162,1.3094,4312.4,4311.8,39.60601703]
[1757371151386,1.3094,4312.4,4311.8,39.72353253]
[1757371155065,0.4575,4312.3,4311.8,39.72353253]
[1757371158106,1e-08,4311.9,4311.8,39.72353253]
[1757371158267,0.4575,4312.7,4312.6,2.31878681]
[1757371158610,0.02,4312.9,4312.7,2.31873304]
[1757371158984,0.3398,4312.8,4312.7,2.31873304]
[1757371159286,1.6492,4312.8,4312.7,2.31873304]
[1757371161103,1.6502,4312.8,4312.7,2.31873304]
[1757371163605,1.6502,4312.8,4312.2,2.31899334]
[1757371163606,2.16752,4312.8,4312.2,2.31899334]
[1757371163822,1.33274554,4312.7,4312.3,2.31893846]
[1757371163993,1.33274554,4312.7,4312.4,2.31888798]
[1757371164197,0.3148,4312.5,4312.2,2.43415094]
[1757371164410,5.1874,4312.4,4312.3,2.31891527]
[1757371164614,5.5022,4312.4,4312.3,2.31891527]
[1757371165493,5.5022,4312.4,4312.3,2.31894812]
[1757371174625,5.5022,4312.4,4312.2,2.43418729]
[1757371174835,0.026,4312.8,4312.3,2.31894812]
[1757371175017,0.026,4312.8,4312.7,2.31873304]
[1757371175217,3.904,4312.8,4312.7,2.31873304]
[1757371175423,5.4789,4312.8,4312.7,2.31873304]
[1757371175933,0.026,4312.8,4312.7,2.31873304]
[1757371176132,3.904,4312.8,4312.7,2.43393304]
[1757371176888,5.4789,4312.8,4312.7,2.43393304]
[1757371177823,5.4789,4312.8,4312.7,0.1152]
[1757371178198,5.4789,4312.8,4312.7,2.43393304]
[1757371181755,5.4789,4312.8,4312.7,0.1152]
[1757371181918,5.4789,4312.8,4312.7,2.43393304]
[1757371183644,6.20679,4312.8,4311.9,1.66334765]
[1757371183959,1.28984554,4312.7,4312.2,0.1152]
[1757371184120,3.878,4312.6,4312.2,2.43419132]